fUSD/lending_fUSD_20250111
["ID","MTS","AMOUNT","RATE_DAILY","PERIOD"]
[348523377,1736603449664,-1492.12,0.00010166,2]
[348523378,1736603449674,-500.0,0.00010166,2]
[348523379,1736603449683,-500.0,0.00010166,2]
[348523380,1736603449693,-500.0,0.00010166,2]
[348523381,1736603449702,-2839.32,0.00010166,2]
[348523382,1736603449712,-2731.28,0.00010166,2]
[348523383,1736603449721,-1077.97,0.00010166,2]
[348523384,1736603449731,-1146.77,0.00010166,2]
[348523385,1736603449740,-829.6,0.00010166,2]
[348523386,1736603449750,-500.0,0.00010166,2]
[348523387,1736603449759,-500.0,0.00010166,2]
[348523388,1736603449768,-1695.87,0.00010166,2]
[348523389,1736603449777,-1185.34,0.00010166,2]
[348523390,1736603449786,-732.64,0.00010166,2]
[348523391,1736603449795,-2047.27,0.00010166,2]
[348523392,1736603449805,-1067.7,0.00010166,2]
[348523393,1736603449816,-500.0,0.00010166,2]
[348523394,1736603449826,-1021.9,0.00010166,2]
[348523395,1736603449836,-803.46,0.00010166,2]
[348523396,1736603449846,-1346.27,0.00010166,2]
[348523397,1736603449857,-1713.52,0.00010166,2]
[348523398,1736603449866,-1018.84,0.00010166,2]
[348523399,1736603449875,-500.0,0.00010167,2]
[348523400,1736603449885,-500.0,0.00010167,2]
[348523401,1736603449894,-500.0,0.00010167,2]
[348523402,1736603449903,-500.0,0.00010167,2]
[348523403,1736603449913,-500.0,0.00010167,2]
[348523404,1736603449922,-500.0,0.00010167,2]
[348523405,1736603449932,-500.0,0.00010167,2]
[348523406,1736603449942,-300.0,0.00010167,2]
[348523407,1736603449952,-500.0,0.00010167,2]
[348523408,1736603449963,-502.69260174,0.00010167,2]
[348523409,1736603449972,-500.0,0.00010167,2]
[348523410,1736603449981,-500.0,0.00010167,2]
[348523411,1736603449990,-500.0,0.00010167,2]
[348523412,1736603449999,-500.0,0.00010167,2]
[348523413,1736603450008,-500.0,0.00010167,2]
[348523414,1736603450016,-500.0,0.00010167,2]
[348523415,1736603450025,-500.0,0.00010167,2]
[348523416,1736603450035,-500.0,0.00010167,2]
[348523417,1736603450044,-500.0,0.00010167,2]
[348523418,1736603450053,-500.0,0.00010167,2]
[348523419,1736603450063,-500.0,0.00010167,2]
[348523420,1736603450071,-615.77530928,0.00010167,2]
[348523421,1736603450080,-500.0,0.00010167,2]
[348523422,1736603450089,-500.0,0.00010167,2]
[348523423,1736603450099,-633.29,0.00010167,2]
[348523424,1736603450108,-511.11968708,0.00010167,2]
[348523425,1736603450117,-897.68,0.00010167,2]
[348523426,1736603450126,-820.36,0.00010167,2]
[348523427,1736603450135,-877.47,0.00010167,2]
[348523428,1736603450145,-2093.3,0.00010167,2]
[348523429,1736603450154,-1122.62814348,0.00010167,2]
[348523430,1736603450175,-324.686543,0.00010167,2]
[348523431,1736603450187,-654.36531352,0.00010167,2]
[348523432,1736603450197,-500.0,0.00010167,2]
[348523433,1736603450208,-626.22,0.00010167,2]
[348523434,1736603450219,-991.1,0.00010167,2]
[348523435,1736603450229,-1117.67,0.00010167,2]
[348523436,1736603450239,-500.0,0.00010167,2]
[348523437,1736603450248,-1005.64,0.00010168,2]
[348523438,1736603450257,-621.53,0.00010168,2]
[348523439,1736603450266,-500.0,0.00010168,2]
[348523440,1736603450275,-500.0,0.00010168,2]
[348523441,1736603450284,-1127.35618374,0.00010168,2]
[348523442,1736603450302,-178.63381626,0.00010168,2]
[348523443,1736603450311,-500.0,0.00010168,2]
[348523444,1736603450320,-500.0,0.00010168,2]
[348523445,1736603450329,-1196.5,0.00010168,2]
[348523446,1736603450340,-1086.04,0.00010168,2]
[348523447,1736603450350,-925.76826924,0.00010168,2]
[348523448,1736603450362,-160.27173076,0.00010168,2]
[348523449,1736603450371,-1000.0,0.00010168,2]
[348523450,1736603450380,-700.39,0.00010168,2]
[348523451,1736603450389,-500.0,0.00010168,2]
[348523452,1736603450398,-500.0,0.00010168,2]
[348523453,1736603450408,-500.0,0.00010168,2]
[348523454,1736603450417,-500.0,0.00010168,2]
[348523455,1736603450429,-813.94,0.00010168,2]
[348523456,1736603450439,-500.0,0.00010168,2]
[348523457,1736603450448,-500.0,0.00010168,2]
[348523458,1736603450457,-500.0,0.00010168,2]
[348523459,1736603450466,-500.0,0.00010168,2]
[348523460,1736603450475,-500.0,0.00010168,2]
[348523461,1736603450484,-500.0,0.00010168,2]
[348523462,1736603450494,-500.0,0.00010168,2]
[348523463,1736603450503,-500.0,0.00010168,2]
[348523464,1736603450513,-146.94189867,0.00010168,2]
[348523465,1736603450540,-353.05810133,0.00010168,2]
[348523466,1736603450550,-573.53,0.00010168,2]
[348523467,1736603450559,-302.76207191,0.00010168,2]
[348523468,1736603450569,-500.0,0.00010168,2]
[348523469,1736603450579,-629.14,0.00010168,2]
[348523470,1736603450588,-500.0,0.00010168,2]
[348523471,1736603450749,-581.9,0.00010168,2]
[348523472,1736603450764,-278.09476373,0.00010168,2]
[348523473,1736603450774,-500.0,0.00010168,2]
[348523474,1736603450783,-500.0,0.00010168,2]
[348523475,1736603450792,-641.71,0.00010168,2]
[348523476,1736603450801,-844.03,0.00010168,2]
[348523477,1736603450810,-500.0,0.00010168,2]
[348523478,1736603450819,-500.0,0.00010168,2]
[348523479,1736603450828,-623.44,0.00010168,2]
[348523480,1736603450837,-500.0,0.00010168,2]
[348523481,1736603450847,-500.0,0.00010168,2]
[348523482,1736603450857,-1695.69,0.00010168,2]
[348523483,1736603450866,-500.0,0.00010168,2]
[348523484,1736603450875,-704.6,0.00010168,2]
[348523485,1736603450885,-500.0,0.00010168,2]
[348523486,1736603450894,-252.84,0.00010168,2]
[348523487,1736603450903,-1059.37,0.00010168,2]
[348523488,1736603450913,-500.0,0.00010168,2]
[348523489,1736603450922,-597.21,0.00010168,2]
[348523490,1736603450931,-672.1,0.00010168,2]
[348523491,1736603450941,-593.17,0.00010168,2]
[348523492,1736603450950,-500.0,0.00010168,2]
[348523493,1736603450959,-1209.760486,0.00010168,2]
[348523494,1736603450969,-500.0,0.00010168,2]
[348523495,1736603450978,-1171.53407,0.00010168,2]
[348523496,1736603450987,-2022.06,0.00010168,2]
[348523497,1736603450997,-500.0,0.00010168,2]
[348523498,1736603451006,-500.0,0.00010168,2]
[348523499,1736603451016,-500.0,0.00010168,2]
[348523500,1736603451025,-500.0,0.00010168,2]
[348523501,1736603451034,-500.0,0.00010168,2]
[348523502,1736603451044,-616.67,0.00010168,2]
[348523503,1736603451053,-500.0,0.00010168,2]
[348523504,1736603451062,-517.21,0.00010168,2]
[348523505,1736603451071,-500.0,0.00010168,2]
[348523506,1736603451081,-500.0,0.00010168,2]
[348523507,1736603451090,-2883.11,0.00010168,2]
[348523508,1736603451099,-500.0,0.00010168,2]
[348523509,1736603451109,-500.0,0.00010168,2]
[348523510,1736603451118,-468.77,0.00010168,2]
[348523511,1736603451127,-453.93097954,0.00010168,2]
[348523512,1736603451137,-500.0,0.00010168,2]
[348523513,1736603451146,-764.33,0.00010168,2]
[348523514,1736603451155,-500.0,0.00010168,2]
[348523515,1736603451165,-694.81,0.00010168,2]
[348523516,1736603451175,-500.0,0.00010168,2]
[348523517,1736603451184,-500.0,0.00010168,2]
[348523518,1736603451193,-500.0,0.00010168,2]
[348523519,1736603451203,-500.0,0.00010168,2]
[348523520,1736603451212,-500.0,0.00010168,2]
[348523521,1736603451221,-500.0,0.00010168,2]
[348523522,1736603451231,-604.32355537,0.00010168,2]
[348523523,1736603451240,-189.25,0.00010168,2]
[348523524,1736603451249,-500.0,0.00010168,2]
[348523525,1736603451259,-500.0,0.00010168,2]
[348523526,1736603451268,-500.0,0.00010168,2]
[348523527,1736603451278,-200.03,0.00010168,2]
[348523528,1736603451288,-500.0,0.00010168,2]
[348523529,1736603451297,-881.06,0.00010168,2]
[348523530,1736603451306,-224.57821006,0.00010173,2]
[348523531,1736603451315,-151.9933299,0.00010173,2]
[348523532,1736603451324,-500.0,0.00010173,2]
[348523533,1736603451334,-500.0,0.00010173,2]
[348523534,1736603451342,-199.22330071,0.00010173,2]
[348523535,1736603451351,-218.49384816,0.0001021,2]
[348523536,1736603451361,-732.64,0.00010272,2]
[348523537,1736603451371,-218.49384816,0.00010314,2]
[348523538,1736603451380,-377.0,0.000104,5]
[348523539,1736603451389,-218.49384816,0.00010417,2]
[348523540,1736603451399,-152.0,0.00010419,3]
[348523541,1736603451408,-636.37,0.00010424,2]
[348523542,1736603451418,-500.0,0.00010434,2]
[348523543,1736603451430,-500.0,0.00010434,2]
[348523544,1736603451439,-518.32,0.00010434,2]
[348523545,1736603451449,-156.43390287,0.00010435,2]
[348523546,1736603451458,-506.91,0.00010435,2]
[348523547,1736603451468,-500.0,0.00010435,2]
[348523548,1736603451478,-500.0,0.00010435,2]
[348523549,1736603451487,-516.79,0.00010435,2]
[348523550,1736603451498,-500.0,0.00010435,2]
[348523551,1736603451507,-500.0,0.00010435,2]
[348523552,1736603451517,-500.0,0.00010435,2]
[348523553,1736603451527,-500.0,0.00010435,2]
[348523554,1736603451536,-500.0,0.00010435,2]
[348523555,1736603451545,-506.05994264,0.00010435,2]
[348523556,1736603451555,-500.0,0.00010435,2]
[348523557,1736603451564,-500.0,0.00010435,2]
[348523558,1736603451574,-178.6919286,0.00010435,2]
[348523559,1736603451583,-500.0,0.00010435,2]
[348523560,1736603451593,-191.69328418,0.00010435,2]
[348523561,1736603451602,-371.83,0.00010435,2]
[348523562,1736603451611,-777.18,0.00010435,2]
[348523563,1736603451621,-522.7,0.00010435,2]
[348523564,1736603451630,-500.0,0.00010435,2]
[348523565,1736603451639,-439.31334616,0.00010435,2]
[348523566,1736603451649,-528.6,0.00010435,2]
[348523567,1736603451658,-486.68,0.00010435,2]
[348523568,1736603451667,-500.0,0.00010435,2]
[348523569,1736603451676,-500.0,0.00010435,2]
[348523570,1736603451686,-500.0,0.00010435,2]
[348523571,1736603451695,-674.18,0.00010435,2]
[348523572,1736603451704,-500.0,0.00010435,2]
[348523573,1736603451714,-500.0,0.00010435,2]
[348523574,1736603451723,-500.0,0.00010435,2]
[348523575,1736603451733,-500.0,0.00010435,2]
[348523576,1736603451742,-500.0,0.00010435,2]
[348523577,1736603451751,-507.12431399,0.00010435,2]
[348523578,1736603451760,-505.72649403,0.00010435,2]
[348523579,1736603451769,-557.29,0.00010435,2]
[348523580,1736603451778,-500.0,0.00010435,2]
[348523581,1736603451787,-500.0,0.00010435,2]
[348523582,1736603451796,-500.0,0.00010435,2]
[348523583,1736603451805,-500.0,0.00010435,2]
[348523584,1736603451814,-500.0,0.00010435,2]
[348523585,1736603451823,-544.17,0.00010435,2]
[348523586,1736603451832,-500.0,0.00010435,2]
[348523587,1736603451841,-500.0,0.00010435,2]
[348523588,1736603451852,-500.0,0.00010435,2]
[348523589,1736603451862,-582.68782005,0.00010435,2]
[348523590,1736603451872,-500.0,0.00010435,2]
[348523591,1736603451881,-506.53077174,0.00010435,2]
[348523592,1736603451889,-500.0,0.00010435,2]
[348523593,1736603451898,-500.0,0.00010435,2]
[348523594,1736603451907,-500.0,0.00010435,2]
[348523595,1736603451917,-500.0,0.00010435,2]
[348523596,1736603451926,-500.0,0.00010435,2]
[348523597,1736603451935,-500.0,0.00010435,2]
[348523598,1736603451944,-500.0,0.00010435,2]
[348523599,1736603451953,-500.0,0.00010435,2]
[348523600,1736603451962,-518.8240551,0.00010435,2]
[348523601,1736603451972,-500.0,0.00010435,2]
[348523602,1736603451981,-500.0,0.00010435,2]
[348523603,1736603451990,-500.0,0.00010435,2]
[348523604,1736603451999,-500.0,0.00010435,2]
[348523605,1736603452008,-500.0,0.00010435,2]
[348523606,1736603452018,-500.0,0.00010435,2]
[348523607,1736603452027,-500.0,0.00010435,2]
[348523608,1736603452037,-500.0,0.00010435,2]
[348523609,1736603452046,-593.83,0.00010435,2]
[348523610,1736603452055,-500.0,0.00010435,2]
[348523611,1736603452064,-500.0,0.00010435,2]
[348523612,1736603452074,-500.0,0.00010435,2]
[348523613,1736603452083,-500.0,0.00010435,2]
[348523614,1736603452092,-386.46431787,0.00010435,2]
[348523615,1736603452101,-500.0,0.00010435,2]
[348523616,1736603452111,-500.0,0.00010435,2]
[348523617,1736603452120,-500.0,0.00010435,2]
[348523618,1736603452130,-500.0,0.00010435,2]
[348523619,1736603452140,-500.0,0.00010435,2]
[348523620,1736603452149,-500.0,0.00010435,2]
[348523621,1736603452159,-580.72,0.00010435,2]
[348523622,1736603452168,-500.0,0.00010435,2]
[348523623,1736603452177,-500.0,0.00010435,2]
[348523624,1736603452186,-500.0,0.00010435,2]
[348523625,1736603452195,-500.0,0.00010435,2]
[348523626,1736603452204,-500.0,0.00010435,2]
[348523627,1736603452213,-500.0,0.00010435,2]
[348523628,1736603452223,-512.84176081,0.00010435,2]
[348523629,1736603452232,-500.0,0.00010435,2]
[348523630,1736603452241,-500.0,0.00010435,2]
[348523631,1736603452251,-500.0,0.00010435,2]
[348523632,1736603452259,-500.0,0.00010435,2]
[348523633,1736603452268,-553.81,0.00010435,2]
[348523634,1736603452277,-500.0,0.00010435,2]
[348523635,1736603452287,-500.0,0.00010435,2]
[348523636,1736603452296,-500.0,0.00010435,2]
[348523637,1736603452305,-500.0,0.00010435,2]
[348523638,1736603452314,-500.0,0.00010435,2]
[348523639,1736603452324,-500.0,0.00010435,2]
[348523640,1736603452334,-500.0,0.00010435,2]
[348523641,1736603452343,-500.0,0.00010435,2]
[348523642,1736603452352,-500.0,0.00010435,2]
[348523643,1736603452362,-500.0,0.00010435,2]
[348523644,1736603452371,-518.9,0.00010435,2]
[348523645,1736603452380,-500.0,0.00010435,2]
[348523646,1736603452389,-500.0,0.00010435,2]
[348523647,1736603452399,-572.98,0.00010435,2]
[348523648,1736603452408,-500.0,0.00010435,2]
[348523649,1736603452418,-500.0,0.00010435,2]
[348523650,1736603452431,-501.45,0.00010435,2]
[348523651,1736603452440,-501.21,0.00010435,2]
[348523652,1736603452450,-500.0,0.00010435,2]
[348523653,1736603452459,-500.0,0.00010435,2]
[348523654,1736603452468,-456.21,0.00010435,2]
[348523655,1736603452478,-500.0,0.00010435,2]
[348523656,1736603452487,-500.0,0.00010435,2]
[348523657,1736603452496,-500.0,0.00010435,2]
[348523658,1736603452506,-500.0,0.00010435,2]
[348523659,1736603452515,-500.0,0.00010435,2]
[348523660,1736603452524,-500.0,0.00010435,2]
[348523661,1736603452533,-500.0,0.00010435,2]
[348523662,1736603452543,-500.0,0.00010435,2]
[348523663,1736603452552,-500.0,0.00010435,2]
[348523664,1736603452562,-500.0,0.00010435,2]
[348523665,1736603452571,-500.0,0.00010435,2]
[348523666,1736603452581,-1089.39,0.00010437,2]
[348523667,1736603452590,-1328.17,0.00010437,2]
[348523668,1736603452600,-1316.37,0.00010437,2]
[348523669,1736603452609,-1075.49,0.00010437,2]
[348523670,1736603452619,-500.0,0.00010437,2]
[348523671,1736603452628,-931.88,0.00010437,2]
[348523672,1736603452637,-1446.69,0.00010437,2]
[348523673,1736603452647,-841.26,0.00010437,2]
[348523674,1736603452657,-449.69,0.00010438,2]
[348523675,1736603452666,-500.0,0.00010438,2]
[348523676,1736603452675,-500.0,0.00010438,2]
[348523677,1736603452684,-500.0,0.00010438,2]
[348523678,1736603452694,-625.64254563,0.00010438,2]
[348523679,1736603452703,-373.55,0.00010438,2]
[348523680,1736603452712,-500.0,0.00010438,2]
[348523681,1736603452722,-500.0,0.00010438,2]
[348523682,1736603452732,-819.81,0.00010438,2]
[348523683,1736603452743,-500.0,0.00010438,2]
[348523684,1736603452754,-500.0,0.00010438,2]
[348523685,1736603452763,-544.67660785,0.00010438,2]
[348523686,1736603452771,-500.0,0.00010438,2]
[348523687,1736603452781,-500.0,0.00010438,2]
[348523688,1736603452790,-160.20778596,0.00010438,2]
[348523689,1736603452805,-383.2998531,0.00010438,2]
[348523690,1736603452814,-303.63167202,0.00010438,2]
[348523691,1736603452823,-271.35490668,0.00010438,2]
[348523692,1736603452834,-92.72818732,0.00010438,2]
[348523693,1736603452843,-500.0,0.00010438,2]
[348523694,1736603452854,-500.0,0.00010438,2]
[348523695,1736603452863,-500.0,0.00010438,2]
[348523696,1736603452873,-500.0,0.00010438,2]
[348523697,1736603452882,-373.01562625,0.00010438,2]
[348523698,1736603452891,-575.66593504,0.00010438,2]
[348523699,1736603452900,-500.0,0.00010438,2]
[348523700,1736603452909,-210.79,0.00010438,2]
[348523701,1736603452918,-502.85963921,0.00010438,2]
[348523702,1736603452928,-187.41140225,0.00010438,2]
[348523703,1736603452937,-500.0,0.00010438,2]
[348523704,1736603452947,-554.33448452,0.00010438,2]
[348523705,1736603452955,-500.0,0.00010438,2]
[348523706,1736603452965,-2354.45,0.00010439,2]
[348523707,1736603452974,-1110.44,0.00010439,2]
[348523708,1736603452983,-500.0,0.00010439,2]
[348523709,1736603452992,-984.69,0.00010439,2]
[348523710,1736603453001,-514.6,0.00010439,2]
[348523711,1736603453012,-500.0,0.0001044,2]
[348523712,1736603453024,-500.0,0.0001044,2]
[348523713,1736603453033,-500.0,0.0001044,2]
[348523714,1736603453043,-540.86,0.0001044,2]
[348523715,1736603453052,-378.69819566,0.0001044,2]
[348523716,1736603453063,-121.30180434,0.0001044,2]
[348523717,1736603453074,-500.0,0.0001044,2]
[348523718,1736603453083,-304.13031113,0.0001044,2]
[348523719,1736603453139,-333.27169636,0.0001044,2]
[348523720,1736603453157,-26.27799251,0.0001044,2]
[348523721,1736603453166,-500.0,0.0001044,2]
[348523722,1736603453177,-625.65,0.0001044,2]
[348523723,1736603453188,-500.0,0.0001044,2]
[348523724,1736603453199,-578.21,0.0001044,2]
[348523725,1736603453210,-311.19,0.0001044,2]
[348523726,1736603453221,-395.28,0.0001044,2]
[348523727,1736603453230,-1286.09,0.0001044,2]
[348523728,1736603453239,-167.04,0.0001044,2]
[348523729,1736603453247,-500.0,0.0001044,2]
[348523730,1736603453256,-1154.22,0.0001044,2]
[348523731,1736603453266,-500.0,0.0001044,2]
[348523732,1736603453275,-500.0,0.0001044,2]
[348523733,1736603453283,-1265.74,0.0001044,2]
[348523734,1736603453292,-633.29,0.0001044,2]
[348523735,1736603453301,-1817.01190749,0.0001044,2]
[348523736,1736603453312,-500.0,0.0001044,2]
[348523737,1736603453323,-1007.74809251,0.0001044,2]
[348523738,1736603453332,-1008.55190749,0.0001044,2]
[348523739,1736603453343,-151.86809251,0.0001044,2]
[348523740,1736603453353,-232.93190749,0.0001044,2]
[348523741,1736603453364,-267.06809251,0.0001044,2]
[348523742,1736603453372,-812.63,0.0001044,2]
[348523743,1736603453382,-1272.49,0.0001044,2]
[348523744,1736603453391,-1252.89,0.0001044,2]
[348523745,1736603453399,-1317.24,0.0001044,2]
[348523746,1736603453409,-1492.12,0.0001044,2]
[348523747,1736603453420,-500.0,0.0001044,2]
[348523748,1736603453430,-328.46,0.0001044,2]
[348523749,1736603453439,-500.0,0.0001044,2]
[348523750,1736603453448,-2839.32,0.0001044,2]
[348523751,1736603453458,-2731.28,0.0001044,2]
[348523752,1736603453467,-1077.97,0.0001044,2]
[348523753,1736603453476,-1146.77,0.0001044,2]
[348523754,1736603453485,-829.6,0.0001044,2]
[348523755,1736603453495,-500.0,0.0001044,2]
[348523756,1736603453504,-500.0,0.0001044,2]
[348523757,1736603453513,-1695.87,0.0001044,2]
[348523758,1736603453523,-1185.34,0.0001044,2]
[348523759,1736603453532,-2047.27,0.0001044,2]
[348523760,1736603453541,-1067.7,0.0001044,2]
[348523761,1736603453550,-1021.9,0.0001044,2]
[348523762,1736603453560,-500.0,0.0001044,2]
[348523763,1736603453570,-803.46,0.0001044,2]
[348523764,1736603453579,-1346.27,0.0001044,2]
[348523765,1736603453588,-1713.52,0.0001044,2]
[348523766,1736603453597,-1018.84,0.0001044,2]
[348523767,1736603453606,-300.57184681,0.00010441,2]
[348523768,1736603453615,-3000.0,0.00010441,2]
[348523769,1736603453624,-897.68,0.00010441,2]
[348523770,1736603453633,-820.36,0.00010441,2]
[348523771,1736603453642,-877.47,0.00010441,2]
[348523772,1736603453653,-2093.3,0.00010441,2]
[348523773,1736603453662,-2101.68,0.00010441,2]
[348523774,1736603453671,-500.0,0.00010441,2]
[348523775,1736603453679,-626.22,0.00010441,2]
[348523776,1736603453688,-991.1,0.00010441,2]
[348523777,1736603453697,-1117.67,0.00010441,2]
[348523778,1736603453706,-500.0,0.00010441,2]
[348523779,1736603453715,-553.33,0.00010442,2]
[348523780,1736603453724,-955.94,0.00010442,2]
[348523781,1736603453732,-500.0,0.00010442,2]
[348523782,1736603453741,-971.79,0.00010442,2]
[348523783,1736603453751,-520.83,0.00010442,2]
[348523784,1736603453761,-905.0,0.00010442,2]
[348523785,1736603453770,-1064.79,0.00010442,2]
[348523786,1736603453779,-954.36,0.00010442,2]
[348523787,1736603453789,-1828.24,0.00010442,2]
[348523788,1736603453799,-4517.29,0.00010442,2]
[348523789,1736603453808,-621.53,0.00010442,2]
[348523790,1736603453819,-500.0,0.00010442,2]
[348523791,1736603453830,-500.0,0.00010442,2]
[348523792,1736603453839,-1305.99,0.00010442,2]
[348523793,1736603453849,-500.0,0.00010442,2]
[348523794,1736603453858,-500.0,0.00010442,2]
[348523795,1736603453868,-1196.5,0.00010442,2]
[348523796,1736603453877,-1086.04,0.00010442,2]
[348523797,1736603453887,-1086.04,0.00010442,2]
[348523798,1736603453896,-206.45,0.00010442,2]
[348523799,1736603453906,-700.39,0.00010442,2]
[348523800,1736603453917,-500.0,0.00010442,2]
[348523801,1736603453926,-500.0,0.00010442,2]
[348523802,1736603453935,-500.0,0.00010442,2]
[348523803,1736603453946,-500.0,0.00010442,2]
[348523804,1736603453955,-813.94,0.00010442,2]
[348523805,1736603453964,-264.6304794,0.00010442,2]
[348523806,1736603453973,-500.0,0.00010442,2]
[348523807,1736603453982,-500.0,0.00010442,2]
[348523808,1736603453991,-500.0,0.00010442,2]
[348523809,1736603454000,-500.0,0.00010442,2]
[348523810,1736603454009,-500.0,0.00010442,2]
[348523811,1736603454018,-647.57,0.00010442,2]
[348523812,1736603454027,-500.0,0.00010442,2]
[348523813,1736603454036,-573.53,0.00010442,2]
[348523814,1736603454045,-500.0,0.00010442,2]
[348523815,1736603454054,-629.14,0.00010442,2]
[348523816,1736603454064,-581.9,0.00010442,2]
[348523817,1736603454073,-500.0,0.00010442,2]
[348523818,1736603454082,-641.71,0.00010442,2]
[348523819,1736603454091,-844.03,0.00010442,2]
[348523820,1736603454100,-500.0,0.00010442,2]
[348523821,1736603454109,-500.0,0.00010442,2]
[348523822,1736603454118,-623.44,0.00010442,2]
[348523823,1736603454127,-500.0,0.00010442,2]
[348523824,1736603454136,-1695.69,0.00010442,2]
[348523825,1736603454145,-463.69,0.00010442,2]
[348523826,1736603454154,-704.6,0.00010442,2]
[348523827,1736603454163,-500.0,0.00010442,2]
[348523828,1736603454172,-1059.37,0.00010442,2]
[348523829,1736603454182,-500.0,0.00010442,2]
[348523830,1736603454191,-672.1,0.00010442,2]
[348523831,1736603454200,-593.17,0.00010442,2]
[348523832,1736603454209,-500.0,0.00010442,2]
[348523833,1736603454218,-1209.760486,0.00010442,2]
[348523834,1736603454227,-608.85,0.00010442,2]
[348523835,1736603454235,-1171.53407,0.00010442,2]
[348523836,1736603454244,-2022.06,0.00010442,2]
[348523837,1736603454254,-500.0,0.00010442,2]
[348523838,1736603454263,-500.0,0.00010442,2]
[348523839,1736603454272,-500.0,0.00010442,2]
[348523840,1736603454281,-500.0,0.00010442,2]
[348523841,1736603454290,-582.35449129,0.00010442,2]
[348523842,1736603454299,-616.67,0.00010442,2]
[348523843,1736603454308,-500.0,0.00010442,2]
[348523844,1736603454317,-517.21,0.00010442,2]
[348523845,1736603454327,-500.0,0.00010442,2]
[348523846,1736603454335,-500.0,0.00010442,2]
[348523847,1736603454345,-2883.11,0.00010442,2]
[348523848,1736603454354,-500.0,0.00010442,2]
[348523849,1736603454363,-500.0,0.00010442,2]
[348523850,1736603454372,-399.32,0.00010442,2]
[348523851,1736603454381,-764.33,0.00010442,2]
[348523852,1736603454391,-285.33,0.00010442,2]
[348523853,1736603454400,-694.81,0.00010442,2]
[348523854,1736603454410,-500.0,0.00010442,2]
[348523855,1736603454421,-384.95,0.00010442,2]
[348523856,1736603454430,-500.0,0.00010442,2]
[348523857,1736603454442,-500.0,0.00010442,2]
[348523858,1736603454451,-234.95,0.00010442,2]
[348523859,1736603454460,-500.0,0.00010442,2]
[348523860,1736603454469,-358.60144298,0.00010442,2]
[348523861,1736603454478,-881.06,0.00010442,2]
[348523862,1736603454487,-218.49384816,0.00010521,2]
[348523863,1736603454496,-1000.0,0.00010534,2]
[348523864,1736603454505,-1047.41,0.00010591,2]
[348523865,1736603454514,-3049.42410432,0.00010608,2]
[348523866,1736603454523,-218.49384816,0.00010624,2]
[348523867,1736603454532,-152.81,0.00010668,2]
[348523868,1736603454541,-1268.0,0.00010682,2]
[348523869,1736603454550,-2015.0,0.00010682,2]
[348523870,1736603454559,-635.0,0.00010682,2]
[348523871,1736603454568,-566.0,0.00010682,2]
[348523872,1736603454577,-257.472,0.00010682,2]
[348523873,1736603454587,-1861.0,0.00010682,2]
[348523874,1736603454596,-833.0,0.00010682,2]
[348523875,1736603454605,-2944.0,0.00010682,2]
[348523876,1736603454615,-1259.0,0.00010682,2]